Cogmind - Beta 13 @@@ ROGUE MODE // 2024.06.19 @ 00:14:10 Player: celerysam Result: Destroyed by Y-45 Defender with Heavy Assault Rifle Performance ------------- Evolutions (2) 1000 Regions Visited (4) 800 Robots Destroyed (19) 95 Value Destroyed (562) 562 Prototype IDs (1) 20 Alien Tech Used (0) 0 Bonus (0) 0 TOTAL SCORE: 2477 Bonus ------- None Cogmind --------- Core Integrity 0/550 Matter 54/300 Energy 100/100 System Corruption 0% Temperature Cool (0) Movement Core (450) Ox8 Location -8/Materials Parts ------- > --- POWER (2) -------- (None) > --- PROPULSION (4) --- Faulty Improved VTOL Module > --- UTILITY (3) ------ Large Storage Unit Weapon Cycler > --- WEAPON (2) ------- Heavy Laser Hammer > --- INVENTORY (15) --- Ion Engine Ion Engine Improved Hover Unit Flight Unit Heat Sink Small Matter Pod (0) Weapon Cycler Mining Laser Peak State ------------ > --- POWER ------------ Improved Ion Engine Light Deuterium Engine > --- PROPULSION ------- Aluminum Leg Aluminum Leg Improved Aluminum Leg Improved Aluminum Leg > --- UTILITY ---------- Large Storage Unit Weapon Cycler ECM Suite > --- WEAPON ----------- Heavy Assault Rifle Heavy Rocket Launcher > --- INVENTORY -------- Ion Engine Ion Engine Light Ion Engine Light Treads Aluminum Leg Wheel Improved Hover Unit Flight Unit Cesium-ion Thruster Improved VTOL Module Heat Sink Small Matter Pod Beam Rifle Mining Laser Hammer [Rating: 25] Favorites ----------- Power Ion Engine Engine Ion Engine Propulsion Aluminum Leg Treads Light Treads Leg Aluminum Leg Wheel Compact Wheel Hover Unit Improved Hover Unit Flight Unit Improved VTOL Module Utility Large Storage Unit Device ECM Suite Storage Large Storage Unit Weapon Improved Light Cannon Energy Gun EM Pulse Gun Ballistic Gun Heavy Assault Rifle Ballistic Cannon Improved Light Cannon Launcher Heavy Rocket Launcher Impact Weapon Hammer Build | -11 -10 -9 -9 -8 ------- Run | Yrd Mat Mat Min Mat Slots Evolved 4 | . . 2 . 2 Power 1 | . . . . 1 Propulsion 2 | . . 2 . . Utility 1 | . . . . 1 Weapon . | . . . . . Parts Attached 43 | 6 4 11 2 20 Power 7 | 1 . 2 1 3 Engine 7 | 1 . 2 1 3 Core . | . . . . . Reactor . | . . . . . Propulsion 17 | 2 1 7 . 7 Treads 1 | . . . . 1 Leg 7 | . . 6 . 1 Wheel 6 | 2 1 1 . 2 Hover 1 | . . . . 1 Flight 2 | . . . . 2 Utility 5 | 1 2 . . 2 Device 3 | . 1 . . 2 Storage 2 | 1 1 . . . Processor . | . . . . . Hackware . | . . . . . Protection . | . . . . . Artifact . | . . . . . Weapon 14 | 2 1 2 1 8 Energy Gun 5 | 2 . . . 3 Energy Cannon . | . . . . . Ballistic Gun 2 | . 1 1 . . Ballistic Cannon 2 | . . 1 1 . Launcher 4 | . . . . 4 Special Weapon . | . . . . . Impact Weapon 1 | . . . . 1 Slashing Weapon . | . . . . . Piercing Weapon . | . . . . . Special Melee Weapon . | . . . . . Unidentified Prototypes 1 | . . . . 1 Parts Lost 21 | . 3 1 . 17 Power 4 | . . . . 4 Propulsion 10 | . 1 1 . 8 Utility 1 | . . . . 1 Weapon 6 | . 2 . . 4 Highest Loss Streak 14 | . 2 1 . 14 To Critical Strikes . | . . . . . Average Slot Usage (%) 89 | . 83 90 100 71 Engine 10 | . 14 9 11 7 Leg 23 | . . 13 44 18 Wheel 11 | . 28 22 . . Device 10 | . 8 11 11 12 Storage 11 | . 14 11 11 9 Energy Gun 3 | . 13 . . 4 Ballistic Gun 8 | . 4 11 11 3 Ballistic Cannon 6 | . . 10 11 . Impact Weapon 1 | . . . . 5 Naked Turns . | . . . . . Heaviest Build 45 | 14 28 34 36 45 Greatest Support 46 | 26 26 46 46 46 Greatest Overweight (x) 10 | . 1 1 . 10 Average Overweight (x) . | . . . . 1 Largest Inventory Capacity 15 | 8 15 15 15 15 Average Capacity 13 | 7 9 15 15 15 Most Carried 15 | 7 8 15 15 15 Average Carried 11 | 3 7 11 15 12 Final Capacity 15 | 8 15 15 15 15 Final Carried 15 | 6 8 15 15 8 Class Distribution -------------------- 100% | Mutant Dominant Class ---------------- Mutant | -10/Materials Mutant | -9/Materials Mutant | -9/Mines Mutant | -8/Materials Resources | -11 -10 -9 -9 -8 ----------- Run | Yrd Mat Mat Min Mat Matter Collected 419 | 198 107 71 43 . Remotely . | . . . . . Salvage Created 594 | . 98 153 . 343 Parts 26 | . 11 8 . 7 Haulers Intercepted . | . . . . . Recyclers Shooed . | . . . . . Parts Field Recycled . | . . . . . Retrieved Matter . | . . . . . Parts Self-Destructed . | . . . . . Prevented . | . . . . . Kills | -11 -10 -9 -9 -8 ------- Run | Yrd Mat Mat Min Mat Combat Hostiles Destroyed 17 | . 6 4 . 7 Guns 5 | . 5 . . . Cannons 4 | . . 4 . . AOE 8 | . 1 . . 7 Classes Destroyed 5 | . 1 3 . 1 Recycler 2 | . . . . 2 Swarmer 6 | . 6 . . . Grunt 8 | . . 2 . 6 Duelist 1 | . . 1 . . Sentry 2 | . . 1 . 1 Best Kill Streak 9 | . 3 2 . 9 Combat Bots Only 7 | . 3 2 . 7 Max Kills in Single Turn 3 | . 1 1 . 3 Gunslinging . | . . . . . Exploded 2 | . 1 . . 2 Melee . | . . . . . Uniques/NPCs Destroyed . | . . . . . Combat | -11 -10 -9 -9 -8 -------- Run | Yrd Mat Mat Min Mat Hostile Shots Fired 271 | . 37 48 . 186 Missed 84 | . 12 15 . 57 Damage Taken 2869 | . 247 433 . 2189 Core 748 | . 60 134 . 554 Absorbed by Shields . | . . . . . Regen/Repaired (Parts) 57 | . . 57 . . Core Remaining (%) 80 | 100 76 . 66 . Volleys Fired 44 | . 23 10 . 11 Largest 2 | . 2 2 . 2 Hottest 80 | . 80 59 . 79 Shots Fired 59 | . 25 21 . 13 Gun 44 | . 25 11 . 8 Cannon 10 | . . 10 . . Launcher 5 | . . . . 5 Special . | . . . . . Kinetic 33 | . 10 21 . 2 Thermal 6 | . . . . 6 Explosive 5 | . . . . 5 Electromagnetic 15 | . 15 . . . Robot Hit Streak 17 | . 5 15 . 17 Robot Miss Streak 5 | . 5 1 . 3 Penetration Max . | . . . . . Secondary Targets . | . . . . . Shots Hit Robots 38 | . 13 16 . 9 Core Hits 29 | . 7 7 . 15 Critical Kills . | . . . . . Critical Parts Destroyed 1 | . . 1 . . Critical Strikes 2 | . . 2 . . Destroy 1 | . . 1 . . Blast 1 | . . 1 . . Melee Attacks 2 | . . . . 2 Impact 2 | . . . . 2 Slashing . | . . . . . Piercing . | . . . . . Sneak Attacks . | . . . . . Combat Hostiles . | . . . . . Follow-up Attacks . | . . . . . Damage Inflicted 1429 | . 235 255 . 939 Guns 275 | . 147 58 . 70 Cannons 194 | . . 194 . . Explosions 902 | . 86 . . 816 Melee 46 | . . . . 46 Ramming 12 | . 2 3 . 7 Kinetic 300 | . 36 252 . 12 Thermal 144 | . 86 . . 58 Explosive 816 | . . . . 816 Electromagnetic 111 | . 111 . . . Impact 46 | . . . . 46 Slashing . | . . . . . Piercing . | . . . . . Highest Corruption 2 | . . 2 2 . Average Corruption 2 | . . 2 2 . Corruption Purged . | . . . . . Corruption Blocked . | . . . . . Effects 14 | . . 5 9 . Message Errors 4 | . . 1 3 . Matter Fused 1 | . . 1 . . Heat Flow Errors 3 | . . 1 2 . Data Loss (minor) 3 | . . . 3 . Data Loss (major) 1 | . . . 1 . Misfires 1 | . . 1 . . Alerts 1 | . . 1 . . Overload Shots . | . . . . . Overflow Damage 35 | . 12 . . 23 Projectiles . | . . . . . Explosions 35 | . 12 . . 23 Melee . | . . . . . Knockbacks 2 | . . 2 . . Impact . | . . . . . Kinetic 2 | . . 2 . . Secondary . | . . . . . Self-Inflicted Damage 211 | . 51 . . 160 Shots 7 | . 2 . . 5 Rammed 4 | . 1 3 . . Targets Rammed 5 | . 1 3 . 1 Kicked 1 | . . . . 1 Crushed . | . . . . . Highest Temperature 243 | . 48 243 243 172 Average Temperature 68 | . 23 48 124 65 Received Heat Transfer 1170 | . . 180 . 990 Siege Activations . | . . . . . Robots Corrupted . | . . . . . Combat Hostiles . | . . . . . Parts Fried . | . . . . . Impact Corruptions . | . . . . . Robots Melted . | . . . . . Combat Hostiles . | . . . . . Parts Melted . | . . . . . Heat Transferred 298 | . 150 . . 148 Parts Sabotaged . | . . . . . Parts Stolen . | . . . . . Parts Stripped . | . . . . . Power Chain Reactions 2 | . 2 . . . Alert | -11 -10 -9 -9 -8 ------- Run | Yrd Mat Mat Min Mat Peak Influence 214 | . 161 214 5 160 Initial 67 | . . 67 5 . Average 61 | . 87 130 3 67 Maximum Alert Level 1 | . . 1 . . Low Security (%) 99 | 100 100 98 100 100 Level 1 . | . . 1 . . Level 2 . | . . . . . Level 3 . | . . . . . Level 4 . | . . . . . Level 5 . | . . . . . High Security . | . . . . . Max Security . | . . . . . Squads Dispatched 7 | . 1 . . 6 Investigation . | . . . . . Extermination . | . . . . . Reinforcement 4 | . 1 . . 3 Assault . | . . . . . Garrison 3 | . . . . 3 Intercept . | . . . . . Searches Triggered . | . . . . . Construction Impeded . | . . . . . Haulers Reinforced . | . . . . . Active Scanning Responses . | . . . . . Cargo Convoy Interrupts . | . . . . . Stealth | -11 -10 -9 -9 -8 --------- Run | Yrd Mat Mat Min Mat Distress Signals 2 | . 1 1 . . Communications Jammed . | . . . . . Distress Signals . | . . . . . Times Spotted 31 | . 12 7 . 12 Peak Tracking Total 6 | . 5 4 . 6 Tactical Retreats 3 | . 1 2 . . Traps | -11 -10 -9 -9 -8 ------- Run | Yrd Mat Mat Min Mat Traps Triggered . | . . . . . Indirectly . | . . . . . Trap Hack Attempts . | . . . . . Triggered . | . . . . . Disarmed . | . . . . . Reprogrammed . | . . . . . Reused . | . . . . . Traps Extracted . | . . . . . Installed . | . . . . . Triggered . | . . . . . Machines | -11 -10 -9 -9 -8 ---------- Run | Yrd Mat Mat Min Mat Machines Disabled . | . . . . . Max in Single Turn . | . . . . . Machines Repaired . | . . . . . Machines Dismantled . | . . . . . Machines Sabotaged . | . . . . . Overloaded Fab Kills . | . . . . . Hacking | -11 -10 -9 -9 -8 --------- Run | Yrd Mat Mat Min Mat Machines Accessed 1 | . . 1 . . Terminals . | . . . . . Fabricators . | . . . . . Repair Stations 1 | . . 1 . . Recycling Units . | . . . . . Scanalyzers . | . . . . . Garrison Access . | . . . . . Total Hacks 3 | . . 3 . . Successful 2 | . . 2 . . Failed 1 | . . 1 . . Catastrophic . | . . . . . Database Lockouts . | . . . . . Manual . | . . . . . Terminals . | . . . . . Fabricators . | . . . . . Repair Stations 3 | . . 3 . . Recycling Units . | . . . . . Scanalyzers . | . . . . . Garrison Access . | . . . . . Terminal Hacks . | . . . . . Fabricator Hacks . | . . . . . Repair Station Hacks 2 | . . 2 . . Scan Component 1 | . . 1 . . Repair 1 | . . 1 . . Recycling Unit Hacks . | . . . . . Scanalyzer . | . . . . . Garrison Access Hacks . | . . . . . Unauthorized Hacks . | . . . . . Terminals . | . . . . . Fabricators . | . . . . . Repair Stations . | . . . . . Recycling Units . | . . . . . Scanalyzers . | . . . . . Garrison Access . | . . . . . Data Cores Recovered . | . . . . . Used . | . . . . . Hacking Detections 1 | . . 1 . . Full Trace Events . | . . . . . Feedback Events . | . . . . . Feedback Blocked . | . . . . . Robot Schematics Acquired . | . . . . . Robots Built . | . . . . . Authchips . | . . . . . Time . | . . . . . Total Robot Build Rating . | . . . . . Part Schematics Acquired . | . . . . . Parts Built . | . . . . . Authchips . | . . . . . Time . | . . . . . Total Part Build Rating . | . . . . . Parts Repaired 1 | . . 1 . . Time 13 | . . 13 . . Parts Recycled . | . . . . . Recycled Matter . | . . . . . Retrieved Matter . | . . . . . Retrieved Components . | . . . . . Parts Scanalyzed . | . . . . . Part Schematics Acquired . | . . . . . Parts Damaged . | . . . . . Bothacking | -11 -10 -9 -9 -8 ------------ Run | Yrd Mat Mat Min Mat Used RIF Installer . | . . . . . Robots Hacked . | . . . . . Non-combat . | . . . . . Combat . | . . . . . Robot Hacks Applied . | . . . . . Relay Couplers Released . | . . . . . Fabnet Peak Effective % . | . . . . . Robots Rewired . | . . . . . Allies Hacked . | . . . . . Hacks Repelled . | . . . . . Allies | -11 -10 -9 -9 -8 -------- Run | Yrd Mat Mat Min Mat Total Allies . | . . . . . Largest Group . | . . . . . Highest-Rated Group . | . . . . . Highest-Rated Ally . | . . . . . Total Orders . | . . . . . Ally Attacks . | . . . . . Total Damage . | . . . . . Kills . | . . . . . Allies Corrupted . | . . . . . Allies Melted . | . . . . . Intel | -11 -10 -9 -9 -8 ------- Run | Yrd Mat Mat Min Mat Robot Analysis Total . | . . . . . Derelict Logs Recovered 1 | . . . 1 . Drone Launches . | . . . . . Drone Recoveries . | . . . . . Exploration | -11 -10 -9 -9 -8 ------------- Run | Yrd Mat Mat Min Mat Turns Passed 1720 | 59 325 413 616 307 Spaces Moved 970 | 48 276 307 218 121 Core 23 | 4 . . . 19 Treads 7 | . . . . 7 Legs 389 | . . 78 218 93 Wheels 550 | 44 276 229 . 1 Hover 1 | . . . . 1 Flight . | . . . . . Fastest Speed 50 | 50 90 93 120 110 Average Speed 113 | 86 92 101 120 191 Slowest Speed 550 | 90 105 120 120 550 Overloaded Moves . | . . . . . Propulsion Burnouts . | . . . . . Robots Hopped . | . . . . . Cave-ins Triggered . | . . . . . Exploration Rate (%) 26 | 3 50 23 45 9 Regions Visited 4 Branch Regions 1 Pre-discovered Areas 1 | . . . 1 . Known Exits Taken . | . . . . . Unknown Exits Taken 4 | 1 1 1 1 . Scrap Searched 2 | . . . 2 . Spaces Dug . | . . . . . Terrain Destroyed 37 | . 6 . . 31 Melee . | . . . . . Projectile . | . . . . . AOE 37 | . 6 . . 31 Terrain Rammed . | . . . . . Walls Destroyed . | . . . . . Machines Disabled . | . . . . . Actions | -11 -10 -9 -9 -8 --------- Run | Yrd Mat Mat Min Mat Total 1536 | 65 324 390 574 183 Wait 419 | . 6 47 351 15 Move 966 | 47 275 306 217 121 Hop . | . . . . . Pick Up 38 | 12 9 10 1 6 Fast Attach 8 | . 1 2 . 5 Attach 24 | 6 2 3 . 13 Detach 2 | . . . . 2 Swap 11 | . 1 6 2 2 Drop 17 | . 6 3 3 5 Fire 44 | . 23 10 . 11 Melee 2 | . . . . 2 Ram 4 | . 1 3 . . Kick 1 | . . . . 1 Crush . | . . . . . Escape Stasis . | . . . . . Rewire . | . . . . . Trap . | . . . . . Miscellaneous . | . . . . . Route ------- -11/Scrapyard -10/Materials -9/Materials -9/Mines -8/Materials History --------- Turn | Location | Event 21 | -11/Scrapyard | Discovered new exit (range 16) 60 | -11/Scrapyard | Entered Materials 307 | -10/Materials | Build established: Mutant 343 | -10/Materials | Discovered new exit (range 15) 385 | -10/Materials | Entered another Materials area 385 | -9/Materials | Evolved 2 slots: Propulsion x2 575 | -9/Materials | Repaired Ion Engine 780 | -9/Materials | Discovered new exit (range 15) 798 | -9/Materials | Entered Mines 799 | -9/Mines | Learned location of Storage (-9) 813 | -9/Mines | Learned Materials stockpile data 1390 | -9/Mines | Discovered new exit (range 14) 1414 | -9/Mines | Entered Materials 1414 | -8/Materials | Evolved 2 slots: Power x1, Utility x1 1601 | -8/Materials | Core integrity fell below 50% 1612 | -8/Materials | Destroyed 7 combat bots 1661 | -8/Materials | Lost 14 parts (3p6n1u4w) 1677 | -8/Materials | Core integrity fell below 20% 1720 | -8/Materials | Lost 3 parts (1p2n) 1721 | -8/Materials | Destroyed by Y-45 Defender with Heavy Assault Rifle Last Messages --------------- 01586_ The unstable cave ceiling collapses. 01587_ ALERT: Hostiles spotted, dispatching reinforcements to Terminal M008. 01587_ Hvy. Rocket Launcher destroyed. 01589_ Lgt. Ion Engine destroyed. 01589_ Lgt. Treads destroyed. 01591_ G-47 Trooper destroyed. 01592_ Y-45 Defender emerges from the garrison. 01603_ The unstable cave ceiling collapses. 01604_ Hvy. Rocket Launcher destroyed. 01606_ The unstable cave ceiling collapses. 01614_ Identified Imp. VTOL Module. 01614_ Faulty integration triggers heat surge (+203). 01616_ The unstable cave ceiling collapses. 01630_ Wheel destroyed. 01672_ Lgt. Deuterium Engine destroyed. 01672_ ALERT: Hostiles spotted, dispatching reinforcements to Terminal M005. 01685_ Cesium-ion Thruster destroyed. 01689_ Aluminum Leg destroyed. Map ----- +----------------------------------------------------+ | | | | | | | | | | | | | | | | | | | | | | | | | | | | | | | | | | | | | | | | | | | | | | | ????????????????????????###########??????????### # | | ????????????????????????# #??????????### | | ????????????????????????#@ #??????????# [ | | ????????????????????????# Y #??????????# [ | | ????????????????????????# gYY #??????????## | | ????????????????????????####/################## | | ???????????????????????????# | | ???????????????????????????################## %# | | ????????????????????????????????????????????# | | ????????????????????????????????????????????# | | ????????????????????????????????????????????# | | ????????????????????????????????????????????# | | ????????????????????????????????????????????# | | ?????????????????????????????????????# | | ?????????????????????????????????????# # | | ?????????????????????????????????????# ## | | ?????????????????????????????????????# #### #? | | ?????????????????????????????????????# ????# #? | | ?????????????????????????????????????# ?????# #? | | ?????????????????????????????????????#??????# #? | | ????????????????????????????????????????????# #? | | ????????????????????????????????????????????# #? | | ????????????????????????????????????????????# #? | | ????????????????????????????????????????????# ?? | | ????????????????????????????????????????????# ?? | | ????????????????????????????????????????????# ?? | | ????????????????????????????????????????????? ?? | +----------------------------------------------------+ Best States ------------- Heat Dissipation 31 Energy Generation 21 Energy Capacity 305 Matter Stores 300 Matter Capacity 300 Sight Range 16 Terrain Scan Density 10 ECM Strength 1 Weapon Cycling 15 Evasion (%) 55 Recoil Reduction 1 Item Schematics ----------------- None Robot Schematics ------------------ None Fabricated ------------ Nothing Alien Tech Used ----------------- None Achievements -------------- None Challenges ------------ None Game ------ Seed InsulatedMetafiberMeganuke Manual? 0 Play Time 00:25:47 Cumulative 52.6 hours Start 2024.06.18 @ 23:38:01 End 2024.06.19 @ 00:14:10 Sessions 1 Manual Loads 0 Difficulty Rogue Special Mode None Game No. 81 Rogue 81 Adventurer 0 Explorer 0 Win Type - Total 0 Types 0/0/0/0/0/0/0/0/0 Lore% 25 Gallery% 41 Achievement% 28 Wizard Run 0 Options --------- Layout 0 ASCII 0 Keyboard 0 Movement Mouse Keybinds 0 Fullscreen 1 Font 24/Smallcaps Map View 76x50 Zoom Use 0% Tactical HUD 1 Map Filters NONE Filters NONE Steam 1 RUN: 24350f56-20e9-4804-9e8e-3896941fd14e